[Event "Titled Tuesday Blitz September 27 Late 2022"]
[White "Babazada, Khazar"]
[Black "Ekdyshman, Mikhail"]
[WhiteFideId "13413554"]
[BlackFideId "4149416"]
[WhiteElo "2409"]
[BlackElo "2146"]
[Result "1-0"]
[Round "03"]
[TimeControl "180+1"]
[Date "2022.09.28"]
[WhiteClock "0:00:15"]
[BlackClock "0:00:03"]

1. Nf3 {[%clk 0:03:00]}  c5 {[%clk 0:02:55]} 2. g3 {[%clk 0:03:00]}  g6 {[%clk 0:02:55]} 3. Bg2 {[%clk 0:02:51]}  Bg7 {[%clk 0:02:55]} 4. O-O {[%clk 0:02:49]}  Nc6 {[%clk 0:02:55]} 5. d3 {[%clk 0:02:49]}  Nf6 {[%clk 0:02:52]} 6. Nc3 {[%clk 0:02:50]}  O-O {[%clk 0:02:52]} 7. Bd2 {[%clk 0:02:51]}  Rb8 {[%clk 0:02:52]} 8. a3 {[%clk 0:02:51]}  b5 {[%clk 0:02:52]} 9. e4 {[%clk 0:02:51]}  d6 {[%clk 0:02:52]} 10. Rb1 {[%clk 0:02:51]}  a5 {[%clk 0:02:52]} 11. Qc1 {[%clk 0:02:47]}  b4 {[%clk 0:02:51]} 12. Nd1 {[%clk 0:02:46]}  Nd4 {[%clk 0:02:46]} 13. Nxd4 {[%clk 0:02:45]}  cxd4 {[%clk 0:02:47]} 14. axb4 {[%clk 0:02:45]}  axb4 {[%clk 0:02:47]} 15. b3 {[%clk 0:02:45]}  Nd7 {[%clk 0:02:39]} 16. Nb2 {[%clk 0:02:44]}  Nc5 {[%clk 0:02:35]} 17. Ra1 {[%clk 0:02:44]}  Bg4 {[%clk 0:02:25]} 18. Na4 {[%clk 0:02:33]}  Qc8 {[%clk 0:02:17]} 19. Qb2 {[%clk 0:02:29]}  Bh3 {[%clk 0:02:02]} 20. Bxh3 {[%clk 0:02:27]}  Qxh3 {[%clk 0:02:02]} 21. Nxc5 {[%clk 0:02:28]}  dxc5 {[%clk 0:02:02]} 22. Ra7 {[%clk 0:02:28]}  Rb5 {[%clk 0:01:49]} 23. Rxe7 {[%clk 0:02:25]}  c4 {[%clk 0:01:49]} 24. bxc4 {[%clk 0:02:14]}  Rh5 {[%clk 0:01:49]} 25. Re1 {[%clk 0:02:14]}  Qxh2+ {[%clk 0:01:47]} 26. Kf1 {[%clk 0:02:13]}  Rb8 {[%clk 0:01:28]} 27. Bf4 {[%clk 0:01:59]}  Ra8 {[%clk 0:01:12]} 28. Ke2 {[%clk 0:01:52]}  Rha5 {[%clk 0:01:04]} 29. Qxb4 {[%clk 0:01:49]}  Qh5+ {[%clk 0:01:01]} 30. Kd2 {[%clk 0:01:48]}  Bf8 {[%clk 0:01:00]} 31. Qb7 {[%clk 0:01:07]}  Ra1 {[%clk 0:00:49]} 32. Rxf7 {[%clk 0:00:52]}  Rxe1 {[%clk 0:00:43]} 33. Rxf8+ {[%clk 0:00:43]}  Rxf8 {[%clk 0:00:28]} 34. Kxe1 {[%clk 0:00:43]}  Qa5+ {[%clk 0:00:05]} 35. Ke2 {[%clk 0:00:42]}  Qh5+ {[%clk 0:00:04]} 36. Kd2 {[%clk 0:00:41]}  Qa5+ {[%clk 0:00:04]} 37. Kd1 {[%clk 0:00:35]}  Qh5+ {[%clk 0:00:02]} 38. Kc1 {[%clk 0:00:34]}  Qa5 {[%clk 0:00:02]} 39. Qd5+ {[%clk 0:00:19]}  Qxd5 {[%clk 0:00:02]} 40. exd5 {[%clk 0:00:20]}  Kf7 {[%clk 0:00:02]} 41. Kd2 {[%clk 0:00:20]}  Re8 {[%clk 0:00:02]} 42. c5 {[%clk 0:00:16]}  Ke7 {[%clk 0:00:02]} 43. Be5 {[%clk 0:00:15]}  Rf8 {[%clk 0:00:01]} 44. Bxd4 {[%clk 0:00:15]}  Rf5 {[%clk 0:00:01]} 45. c4 {[%clk 0:00:15]}  h5 {[%clk 0:00:02]} 46. Be3 {[%clk 0:00:15]}  g5 {[%clk 0:00:02]} 47. c6 {[%clk 0:00:15]}  h4 {[%clk 0:00:02]} 48. gxh4 {[%clk 0:00:13]}  gxh4 {[%clk 0:00:03]} 49. Bc5+ {[%clk 0:00:10]}  Kd8 {[%clk 0:00:03]} 50. Bb6+ {[%clk 0:00:11]}  Kc8 {[%clk 0:00:03]} 51. d6 {[%clk 0:00:11]}  Rf7 {[%clk 0:00:02]} 52. d7+ {[%clk 0:00:10]}  Rxd7 {[%clk 0:00:02]} 53. cxd7+ {[%clk 0:00:11]}  Kxd7 {[%clk 0:00:02]} 54. f4 {[%clk 0:00:11]}  Ke6 {[%clk 0:00:02]} 55. Bg1 {[%clk 0:00:12]}  Kf5 {[%clk 0:00:03]} 56. Bh2 {[%clk 0:00:13]}  Kg4 {[%clk 0:00:03]} 57. f5 {[%clk 0:00:13]}  Kh3 {[%clk 0:00:03]} 58. f6 {[%clk 0:00:14]}  Kxh2 {[%clk 0:00:04]} 59. f7 {[%clk 0:00:15]}  h3 {[%clk 0:00:04]} 60. f8=Q {[%clk 0:00:16]}  Kh1 {[%clk 0:00:04]} 61. Qh8 {[%clk 0:00:14]}  h2 {[%clk 0:00:04]} 62. Ke2 {[%clk 0:00:15]}  Kg1 {[%clk 0:00:03]} 1-0


[Site "https://www.chess.com"]

[Event "Titled Tuesday Blitz September 27 Late 2022"]
[White "Baskakov, Egor"]
[Black "Martinez Alcantara, Jose Eduardo"]
[WhiteFideId "24197866"]
[BlackFideId "3805662"]
[WhiteElo "2211"]
[BlackElo "2703"]
[Result "0-1"]
[Round "03"]
[TimeControl "180+1"]
[Date "2022.09.27"]
[WhiteClock "0:00:07"]
[BlackClock "0:00:14"]

1. e4 {[%clk 0:03:00]}  c5 {[%clk 0:02:58]} 2. Nf3 {[%clk 0:03:00]}  d6 {[%clk 0:02:59]} 3. d4 {[%clk 0:03:00]}  cxd4 {[%clk 0:02:59]} 4. Nxd4 {[%clk 0:03:01]}  Nf6 {[%clk 0:03:00]} 5. Nc3 {[%clk 0:03:01]}  Nc6 {[%clk 0:03:01]} 6. g3 {[%clk 0:03:01]}  e6 {[%clk 0:03:01]} 7. Bg2 {[%clk 0:03:00]}  Bd7 {[%clk 0:03:02]} 8. O-O {[%clk 0:03:01]}  a6 {[%clk 0:03:02]} 9. a4 {[%clk 0:03:00]}  Be7 {[%clk 0:03:03]} 10. Nce2 {[%clk 0:03:01]}  Rc8 {[%clk 0:02:57]} 11. b3 {[%clk 0:02:57]}  Nxd4 {[%clk 0:02:53]} 12. Nxd4 {[%clk 0:02:58]}  O-O {[%clk 0:02:48]} 13. c4 {[%clk 0:02:57]}  Qc7 {[%clk 0:02:45]} 14. Be3 {[%clk 0:02:57]}  Rfd8 {[%clk 0:02:45]} 15. h3 {[%clk 0:02:50]}  Qb8 {[%clk 0:02:46]} 16. Qd2 {[%clk 0:02:50]}  Bc6 {[%clk 0:02:44]} 17. Qd3 {[%clk 0:02:17]}  Nd7 {[%clk 0:02:43]} 18. b4 {[%clk 0:02:12]}  Ne5 {[%clk 0:02:42]} 19. Qe2 {[%clk 0:02:11]}  Be8 {[%clk 0:02:42]} 20. Rfc1 {[%clk 0:02:10]}  Bf6 {[%clk 0:02:41]} 21. a5 {[%clk 0:02:05]}  h6 {[%clk 0:02:31]} 22. Rab1 {[%clk 0:02:05]}  Qc7 {[%clk 0:02:27]} 23. Nb3 {[%clk 0:01:59]}  Nd7 {[%clk 0:02:12]} 24. c5 {[%clk 0:01:59]}  dxc5 {[%clk 0:02:12]} 25. Nxc5 {[%clk 0:01:59]}  Nxc5 {[%clk 0:02:12]} 26. Bxc5 {[%clk 0:01:59]}  Bb5 {[%clk 0:02:10]} 27. Qe3 {[%clk 0:01:59]}  Rd3 {[%clk 0:02:09]} 28. Qe1 {[%clk 0:01:57]}  Qd7 {[%clk 0:01:48]} 29. e5 {[%clk 0:01:51]}  Bg5 {[%clk 0:01:49]} 30. Rd1 {[%clk 0:01:50]}  Bd2 {[%clk 0:01:30]} 31. Qe4 {[%clk 0:01:46]}  Bc6 {[%clk 0:01:30]} 32. Qe2 {[%clk 0:01:37]}  Bxg2 {[%clk 0:01:30]} 33. Kxg2 {[%clk 0:01:36]}  Qd5+ {[%clk 0:01:31]} 34. Kg1 {[%clk 0:01:36]}  Rd8 {[%clk 0:01:28]} 35. Bd6 {[%clk 0:01:35]}  Rd4 {[%clk 0:01:27]} 36. b5 {[%clk 0:01:32]}  Bxa5 {[%clk 0:01:13]} 37. bxa6 {[%clk 0:01:25]}  bxa6 {[%clk 0:01:11]} 38. Rxd4 {[%clk 0:01:24]}  Qxd4 {[%clk 0:01:12]} 39. Qxa6 {[%clk 0:01:23]}  Qe4 {[%clk 0:00:59]} 40. Qb7 {[%clk 0:01:13]}  Qc2 {[%clk 0:00:50]} 41. Qb2 {[%clk 0:01:09]}  Qe4 {[%clk 0:00:44]} 42. Qb7 {[%clk 0:01:07]}  Qf5 {[%clk 0:00:44]} 43. Rd1 {[%clk 0:00:54]}  Qxh3 {[%clk 0:00:31]} 44. Qa7 {[%clk 0:00:43]}  Qh5 {[%clk 0:00:13]} 45. Rd3 {[%clk 0:00:28]}  Rc8 {[%clk 0:00:13]} 46. Bc5 {[%clk 0:00:18]}  Qxe5 {[%clk 0:00:11]} 47. Be3 {[%clk 0:00:13]}  Bc7 {[%clk 0:00:06]} 48. Qb7 {[%clk 0:00:13]}  Rd8 {[%clk 0:00:05]} 49. Rxd8+ {[%clk 0:00:07]}  Bxd8 {[%clk 0:00:06]} 50. Qd7 {[%clk 0:00:07]}  Qf6 {[%clk 0:00:04]} 51. Bd4 {[%clk 0:00:06]}  Qe7 {[%clk 0:00:03]} 52. Qc8 {[%clk 0:00:07]}  Kh7 {[%clk 0:00:02]} 53. Qc2+ {[%clk 0:00:07]}  f5 {[%clk 0:00:03]} 54. Qc6 {[%clk 0:00:07]}  Qf7 {[%clk 0:00:03]} 55. Qd6 {[%clk 0:00:07]}  Bf6 {[%clk 0:00:04]} 56. Be3 {[%clk 0:00:06]}  Kg6 {[%clk 0:00:04]} 57. Qc6 {[%clk 0:00:04]}  Qe7 {[%clk 0:00:04]} 58. Kg2 {[%clk 0:00:05]}  Kf7 {[%clk 0:00:04]} 59. Qf3 {[%clk 0:00:05]}  Qd7 {[%clk 0:00:04]} 60. Qh5+ {[%clk 0:00:05]}  Kg8 {[%clk 0:00:04]} 61. Qf3 {[%clk 0:00:04]}  Qd5 {[%clk 0:00:05]} 62. Qxd5 {[%clk 0:00:05]}  exd5 {[%clk 0:00:06]} 63. Kf3 {[%clk 0:00:05]}  Kf7 {[%clk 0:00:06]} 64. Kf4 {[%clk 0:00:05]}  Ke6 {[%clk 0:00:07]} 65. Kf3 {[%clk 0:00:06]}  g5 {[%clk 0:00:07]} 66. Bd2 {[%clk 0:00:06]}  g4+ {[%clk 0:00:07]} 67. Ke2 {[%clk 0:00:07]}  h5 {[%clk 0:00:08]} 68. Bf4 {[%clk 0:00:07]}  h4 {[%clk 0:00:09]} 69. gxh4 {[%clk 0:00:06]}  Bxh4 {[%clk 0:00:10]} 70. f3 {[%clk 0:00:06]}  Bf6 {[%clk 0:00:10]} 71. fxg4 {[%clk 0:00:07]}  fxg4 {[%clk 0:00:11]} 72. Kf2 {[%clk 0:00:07]}  Kf5 {[%clk 0:00:12]} 73. Be3 {[%clk 0:00:07]}  Ke4 {[%clk 0:00:12]} 74. Bh6 {[%clk 0:00:05]}  Be5 {[%clk 0:00:12]} 75. Kg2 {[%clk 0:00:06]}  d4 {[%clk 0:00:13]} 76. Kf2 {[%clk 0:00:06]}  d3 {[%clk 0:00:14]} 77. Kg2 {[%clk 0:00:07]}  Bf4 {[%clk 0:00:14]} 0-1


[Site "https://www.chess.com"]

[Event "Titled Tuesday Blitz September 27 Late 2022"]
[White "Bluebaum, Matthias"]
[Black "Goltsev, Dmitry"]
[WhiteFideId "24651516"]
[BlackFideId "24176710"]
[WhiteElo "2633"]
[BlackElo "2257"]
[Result "1/2-1/2"]
[Round "03"]
[TimeControl "180+1"]
[Date "2022.09.27"]
[WhiteClock "0:00:04"]
[BlackClock "0:00:09"]

1. d4 {[%clk 0:03:00]}  Nf6 {[%clk 0:02:56]} 2. c4 {[%clk 0:03:01]}  e6 {[%clk 0:02:56]} 3. Nc3 {[%clk 0:03:01]}  Bb4 {[%clk 0:02:56]} 4. e3 {[%clk 0:03:02]}  Qe7 {[%clk 0:02:56]} 5. Bd3 {[%clk 0:02:59]}  O-O {[%clk 0:02:56]} 6. Bd2 {[%clk 0:02:59]}  b6 {[%clk 0:02:57]} 7. Nf3 {[%clk 0:02:59]}  Bb7 {[%clk 0:02:57]} 8. Qc2 {[%clk 0:02:57]}  d6 {[%clk 0:02:54]} 9. e4 {[%clk 0:02:56]}  e5 {[%clk 0:02:53]} 10. O-O {[%clk 0:02:46]}  Nbd7 {[%clk 0:02:50]} 11. Rfe1 {[%clk 0:02:42]}  exd4 {[%clk 0:02:47]} 12. Nxd4 {[%clk 0:02:43]}  Ne5 {[%clk 0:02:44]} 13. Nf5 {[%clk 0:02:16]}  Qd7 {[%clk 0:02:39]} 14. f3 {[%clk 0:02:11]}  c6 {[%clk 0:02:29]} 15. a3 {[%clk 0:02:10]}  Bc5+ {[%clk 0:02:24]} 16. Kh1 {[%clk 0:02:10]}  d5 {[%clk 0:02:10]} 17. exd5 {[%clk 0:01:47]}  Nxd3 {[%clk 0:02:08]} 18. Qxd3 {[%clk 0:01:47]}  cxd5 {[%clk 0:02:08]} 19. b4 {[%clk 0:01:48]}  Bd6 {[%clk 0:01:17]} 20. Nxd6 {[%clk 0:01:31]}  Qxd6 {[%clk 0:01:18]} 21. Bg5 {[%clk 0:01:30]}  Rfd8 {[%clk 0:01:04]} 22. cxd5 {[%clk 0:01:30]}  Rac8 {[%clk 0:00:58]} 23. Rad1 {[%clk 0:01:26]}  h6 {[%clk 0:00:57]} 24. Bh4 {[%clk 0:01:26]}  Rd7 {[%clk 0:00:48]} 25. Qd4 {[%clk 0:01:18]}  Nxd5 {[%clk 0:00:40]} 26. Bg3 {[%clk 0:00:31]}  Qg6 {[%clk 0:00:31]} 27. Ne4 {[%clk 0:00:26]}  Rc2 {[%clk 0:00:28]} 28. Rc1 {[%clk 0:00:22]}  Rxg2 {[%clk 0:00:24]} 29. Rg1 {[%clk 0:00:12]}  Rxg1+ {[%clk 0:00:22]} 30. Rxg1 {[%clk 0:00:13]}  Qf5 {[%clk 0:00:23]} 31. Rf1 {[%clk 0:00:05]}  Nf4 {[%clk 0:00:20]} 32. Qe3 {[%clk 0:00:05]}  Nh3 {[%clk 0:00:18]} 33. Nd6 {[%clk 0:00:05]}  Qe6 {[%clk 0:00:14]} 34. Qxe6 {[%clk 0:00:04]}  fxe6 {[%clk 0:00:15]} 35. Nxb7 {[%clk 0:00:03]}  Rxb7 {[%clk 0:00:16]} 36. f4 {[%clk 0:00:04]}  g5 {[%clk 0:00:14]} 37. Kg2 {[%clk 0:00:03]}  Nxf4+ {[%clk 0:00:14]} 38. Bxf4 {[%clk 0:00:03]}  gxf4 {[%clk 0:00:15]} 39. Rxf4 {[%clk 0:00:04]}  Rg7+ {[%clk 0:00:16]} 40. Kh3 {[%clk 0:00:03]}  Rf7 {[%clk 0:00:17]} 41. Re4 {[%clk 0:00:03]}  Rf3+ {[%clk 0:00:16]} 42. Kg4 {[%clk 0:00:03]}  Rf6 {[%clk 0:00:16]} 43. b5 {[%clk 0:00:04]}  Kg7 {[%clk 0:00:16]} 44. Ra4 {[%clk 0:00:04]}  Rf7 {[%clk 0:00:16]} 45. Re4 {[%clk 0:00:04]}  Re7 {[%clk 0:00:16]} 46. Kf4 {[%clk 0:00:04]}  Kf6 {[%clk 0:00:16]} 47. Rc4 {[%clk 0:00:05]}  Rd7 {[%clk 0:00:16]} 48. Ke4 {[%clk 0:00:04]}  Rd5 {[%clk 0:00:16]} 49. a4 {[%clk 0:00:05]}  Rd2 {[%clk 0:00:15]} 50. Rc7 {[%clk 0:00:05]}  Rxh2 {[%clk 0:00:13]} 51. Rxa7 {[%clk 0:00:06]}  Rh4+ {[%clk 0:00:11]} 52. Kd3 {[%clk 0:00:06]}  Rg4 {[%clk 0:00:09]} 53. Kc3 {[%clk 0:00:07]}  h5 {[%clk 0:00:10]} 54. Kb3 {[%clk 0:00:06]}  h4 {[%clk 0:00:06]} 55. Rb7 {[%clk 0:00:07]}  h3 {[%clk 0:00:07]} 56. Rh7 {[%clk 0:00:07]}  Rg3+ {[%clk 0:00:07]} 57. Kb4 {[%clk 0:00:08]}  Kg5 {[%clk 0:00:07]} 58. a5 {[%clk 0:00:08]}  Rg4+ {[%clk 0:00:07]} 59. Ka3 {[%clk 0:00:08]}  bxa5 {[%clk 0:00:05]} 60. Rxh3 {[%clk 0:00:08]}  Rb4 {[%clk 0:00:04]} 61. Rb3 {[%clk 0:00:08]}  Rd4 {[%clk 0:00:03]} 62. b6 {[%clk 0:00:09]}  Rd8 {[%clk 0:00:04]} 63. b7 {[%clk 0:00:09]}  Rb8 {[%clk 0:00:05]} 64. Ka4 {[%clk 0:00:09]}  Kf4 {[%clk 0:00:05]} 65. Kxa5 {[%clk 0:00:10]}  e5 {[%clk 0:00:06]} 66. Kb6 {[%clk 0:00:10]}  e4 {[%clk 0:00:06]} 67. Rb4 {[%clk 0:00:10]}  Kf3 {[%clk 0:00:06]} 68. Kc7 {[%clk 0:00:10]}  Rxb7+ {[%clk 0:00:07]} 69. Kxb7 {[%clk 0:00:11]}  e3 {[%clk 0:00:07]} 70. Rb3 {[%clk 0:00:11]}  Kf2 {[%clk 0:00:07]} 71. Kc6 {[%clk 0:00:12]}  e2 {[%clk 0:00:08]} 72. Rb2 {[%clk 0:00:13]}  Kf1 {[%clk 0:00:08]} 73. Rb1+ {[%clk 0:00:08]}  e1=Q {[%clk 0:00:08]} 74. Rxe1+ {[%clk 0:00:04]}  Kxe1 {[%clk 0:00:09]} 1/2-1/2


[Site "https://www.chess.com"]

[Event "Titled Tuesday Blitz September 27 Late 2022"]
[White "Dounis, Alexandros"]
[Black "Fawzy, Adham"]
[WhiteFideId "4213238"]
[BlackFideId "10613129"]
[WhiteElo "2204"]
[BlackElo "2541"]
[Result "0-1"]
[Round "03"]
[TimeControl "180+1"]
[Date "2022.09.28"]
[WhiteClock "0:00:02"]
[BlackClock "0:00:15"]

1. Nf3 {[%clk 0:02:56]}  c5 {[%clk 0:03:00]} 2. e4 {[%clk 0:02:53]}  Nc6 {[%clk 0:03:00]} 3. d4 {[%clk 0:02:51]}  cxd4 {[%clk 0:03:01]} 4. Nxd4 {[%clk 0:02:52]}  Nf6 {[%clk 0:03:01]} 5. Nc3 {[%clk 0:02:52]}  e5 {[%clk 0:03:02]} 6. Ndb5 {[%clk 0:02:50]}  d6 {[%clk 0:03:02]} 7. Bg5 {[%clk 0:02:50]}  a6 {[%clk 0:03:03]} 8. Na3 {[%clk 0:02:48]}  b5 {[%clk 0:03:03]} 9. Nd5 {[%clk 0:02:48]}  Be7 {[%clk 0:03:03]} 10. Bxf6 {[%clk 0:02:49]}  Bxf6 {[%clk 0:03:04]} 11. c3 {[%clk 0:02:48]}  Bg5 {[%clk 0:03:04]} 12. Nc2 {[%clk 0:02:46]}  Rb8 {[%clk 0:03:05]} 13. g3 {[%clk 0:02:35]}  O-O {[%clk 0:03:02]} 14. Bg2 {[%clk 0:02:35]}  Be6 {[%clk 0:03:02]} 15. O-O {[%clk 0:02:35]}  a5 {[%clk 0:02:57]} 16. a3 {[%clk 0:02:29]}  Ne7 {[%clk 0:02:57]} 17. Nce3 {[%clk 0:02:19]}  Bxe3 {[%clk 0:02:52]} 18. Nxe3 {[%clk 0:02:19]}  Qb6 {[%clk 0:02:53]} 19. Qd2 {[%clk 0:02:16]}  Rfd8 {[%clk 0:02:51]} 20. Rfd1 {[%clk 0:02:14]}  Bb3 {[%clk 0:02:38]} 21. Rdc1 {[%clk 0:02:05]}  Qc5 {[%clk 0:02:38]} 22. Qe2 {[%clk 0:01:54]}  Rbc8 {[%clk 0:02:30]} 23. Qh5 {[%clk 0:01:35]}  f6 {[%clk 0:02:08]} 24. Bh3 {[%clk 0:01:32]}  Rc7 {[%clk 0:02:01]} 25. c4 {[%clk 0:01:32]}  bxc4 {[%clk 0:01:10]} 26. Be6+ {[%clk 0:01:32]}  Kh8 {[%clk 0:01:10]} 27. Nxc4 {[%clk 0:01:32]}  Qd4 {[%clk 0:01:06]} 28. Qf7 {[%clk 0:01:24]}  Bxc4 {[%clk 0:00:44]} 29. Rxc4 {[%clk 0:01:20]}  Rxc4 {[%clk 0:00:44]} 30. Bxc4 {[%clk 0:01:21]}  d5 {[%clk 0:00:31]} 31. exd5 {[%clk 0:01:12]}  Qxc4 {[%clk 0:00:29]} 32. Qxe7 {[%clk 0:01:11]}  Qxd5 {[%clk 0:00:30]} 33. b4 {[%clk 0:01:08]}  h6 {[%clk 0:00:27]} 34. bxa5 {[%clk 0:01:06]}  Ra8 {[%clk 0:00:26]} 35. a4 {[%clk 0:01:00]}  Rxa5 {[%clk 0:00:24]} 36. h4 {[%clk 0:00:58]}  Kh7 {[%clk 0:00:22]} 37. Qb4 {[%clk 0:00:55]}  f5 {[%clk 0:00:20]} 38. h5 {[%clk 0:00:47]}  f4 {[%clk 0:00:18]} 39. Qc3 {[%clk 0:00:41]}  Rc5 {[%clk 0:00:17]} 40. Qa3 {[%clk 0:00:32]}  fxg3 {[%clk 0:00:16]} 41. Qxg3 {[%clk 0:00:31]}  e4 {[%clk 0:00:16]} 42. Qg6+ {[%clk 0:00:30]}  Kh8 {[%clk 0:00:16]} 43. Rb1 {[%clk 0:00:30]}  Qg5+ {[%clk 0:00:13]} 44. Qxg5 {[%clk 0:00:29]}  Rxg5+ {[%clk 0:00:13]} 45. Kf1 {[%clk 0:00:30]}  Rxh5 {[%clk 0:00:13]} 46. Ke2 {[%clk 0:00:24]}  Kh7 {[%clk 0:00:10]} 47. Ke3 {[%clk 0:00:22]}  Rf5 {[%clk 0:00:11]} 48. Kxe4 {[%clk 0:00:19]}  Rxf2 {[%clk 0:00:11]} 49. Ra1 {[%clk 0:00:20]}  Rf6 {[%clk 0:00:11]} 50. a5 {[%clk 0:00:20]}  Ra6 {[%clk 0:00:12]} 51. Kd5 {[%clk 0:00:19]}  g5 {[%clk 0:00:13]} 52. Kc5 {[%clk 0:00:19]}  Kg6 {[%clk 0:00:13]} 53. Kb5 {[%clk 0:00:19]}  Ra8 {[%clk 0:00:14]} 54. a6 {[%clk 0:00:19]}  g4 {[%clk 0:00:14]} 55. Kb6 {[%clk 0:00:17]}  Kg5 {[%clk 0:00:15]} 56. a7 {[%clk 0:00:16]}  h5 {[%clk 0:00:14]} 57. Kb7 {[%clk 0:00:16]}  Rf8 {[%clk 0:00:14]} 58. Ra5+ {[%clk 0:00:13]}  Kh4 {[%clk 0:00:11]} 59. a8=Q {[%clk 0:00:12]}  Rxa8 {[%clk 0:00:11]} 60. Kxa8 {[%clk 0:00:13]}  g3 {[%clk 0:00:11]} 61. Kb7 {[%clk 0:00:10]}  g2 {[%clk 0:00:11]} 62. Ra1 {[%clk 0:00:10]}  Kg3 {[%clk 0:00:11]} 63. Kc6 {[%clk 0:00:10]}  h4 {[%clk 0:00:12]} 64. Kd5 {[%clk 0:00:11]}  h3 {[%clk 0:00:13]} 65. Ke4 {[%clk 0:00:10]}  h2 {[%clk 0:00:13]} 66. Ra3+ {[%clk 0:00:10]}  Kg4 {[%clk 0:00:14]} 67. Ra8 {[%clk 0:00:08]}  g1=Q {[%clk 0:00:14]} 68. Rg8+ {[%clk 0:00:08]}  Kh5 {[%clk 0:00:14]} 69. Rh8+ {[%clk 0:00:07]}  Kg6 {[%clk 0:00:15]} 70. Rg8+ {[%clk 0:00:02]}  Kf7 {[%clk 0:00:15]} 71. Rg2 {[%clk 0:00:02]}  Qxg2+ {[%clk 0:00:15]} 0-1


[Site "https://www.chess.com"]

[Event "Titled Tuesday Blitz September 27 Late 2022"]
[White "Ermolaev, Andrey"]
[Black "Avalos Parra, Joao"]
[WhiteFideId "14112825"]
[BlackFideId "3402541"]
[WhiteElo "2246"]
[BlackElo "2173"]
[Result "1/2-1/2"]
[Round "03"]
[TimeControl "180+1"]
[Date "2022.09.28"]
[WhiteClock "0:00:13"]
[BlackClock "0:00:30"]

1. d4 {[%clk 0:00:15]}  d5 {[%clk 0:02:56]} 2. Nc3 {[%clk 0:00:15]}  e6 {[%clk 0:02:53]} 3. e4 {[%clk 0:00:15]}  Bb4 {[%clk 0:02:54]} 4. e5 {[%clk 0:00:15]}  c5 {[%clk 0:02:54]} 5. a3 {[%clk 0:00:16]}  Bxc3+ {[%clk 0:02:55]} 6. bxc3 {[%clk 0:00:17]}  Nc6 {[%clk 0:02:56]} 7. Qg4 {[%clk 0:00:17]}  g6 {[%clk 0:02:55]} 8. Nf3 {[%clk 0:00:16]}  Qa5 {[%clk 0:02:56]} 9. Bd2 {[%clk 0:00:16]}  Qa4 {[%clk 0:02:55]} 10. Ra2 {[%clk 0:00:15]}  Bd7 {[%clk 0:02:54]} 11. h4 {[%clk 0:00:15]}  h6 {[%clk 0:02:53]} 12. Qf4 {[%clk 0:00:15]}  Rh7 {[%clk 0:02:50]} 13. dxc5 {[%clk 0:00:15]}  Qxf4 {[%clk 0:02:41]} 14. Bxf4 {[%clk 0:00:16]}  O-O-O {[%clk 0:02:40]} 15. Bd3 {[%clk 0:00:16]}  Nge7 {[%clk 0:02:39]} 16. h5 {[%clk 0:00:16]}  Rf8 {[%clk 0:02:24]} 17. Ke2 {[%clk 0:00:10]}  Be8 {[%clk 0:02:15]} 18. Raa1 {[%clk 0:00:09]}  f5 {[%clk 0:02:07]} 19. exf6 {[%clk 0:00:08]}  Rxf6 {[%clk 0:02:07]} 20. Bd6 {[%clk 0:00:08]}  Nf5 {[%clk 0:02:05]} 21. hxg6 {[%clk 0:00:07]}  Bxg6 {[%clk 0:02:04]} 22. Bxf5 {[%clk 0:00:03]}  Bxf5 {[%clk 0:02:03]} 23. Rh4 {[%clk 0:00:03]}  Bxc2 {[%clk 0:02:01]} 24. Rah1 {[%clk 0:00:04]}  Be4 {[%clk 0:01:57]} 25. R1h2 {[%clk 0:00:03]}  Nd8 {[%clk 0:01:52]} 26. Ne5 {[%clk 0:00:02]}  Nf7 {[%clk 0:01:51]} 27. Nxf7 {[%clk 0:00:03]}  Rhxf7 {[%clk 0:01:50]} 28. f3 {[%clk 0:00:03]}  Bf5 {[%clk 0:01:40]} 29. Rxh6 {[%clk 0:00:04]}  Rxh6 {[%clk 0:01:36]} 30. Rxh6 {[%clk 0:00:04]}  Kd7 {[%clk 0:01:36]} 31. g4 {[%clk 0:00:05]}  Bb1 {[%clk 0:01:35]} 32. Rh8 {[%clk 0:00:05]}  Kc6 {[%clk 0:01:19]} 33. Rc8+ {[%clk 0:00:04]}  Kb5 {[%clk 0:01:18]} 34. Re8 {[%clk 0:00:05]}  Kc4 {[%clk 0:01:14]} 35. Rxe6 {[%clk 0:00:05]}  Kxc3 {[%clk 0:01:12]} 36. Re7 {[%clk 0:00:05]}  Rxe7+ {[%clk 0:00:56]} 37. Bxe7 {[%clk 0:00:06]}  d4 {[%clk 0:00:56]} 38. Bf6 {[%clk 0:00:06]}  Kc4 {[%clk 0:00:55]} 39. f4 {[%clk 0:00:03]}  Kxc5 {[%clk 0:00:54]} 40. f5 {[%clk 0:00:04]}  Kd5 {[%clk 0:00:51]} 41. Bh4 {[%clk 0:00:02]}  b5 {[%clk 0:00:45]} 42. Kd2 {[%clk 0:00:02]}  a5 {[%clk 0:00:44]} 43. Be7 {[%clk 0:00:03]}  Be4 {[%clk 0:00:38]} 44. Bd8 {[%clk 0:00:03]}  b4 {[%clk 0:00:31]} 45. axb4 {[%clk 0:00:03]}  axb4 {[%clk 0:00:32]} 46. Be7 {[%clk 0:00:03]}  b3 {[%clk 0:00:32]} 47. Ba3 {[%clk 0:00:03]}  Bf3 {[%clk 0:00:32]} 48. g5 {[%clk 0:00:03]}  Bg4 {[%clk 0:00:31]} 49. f6 {[%clk 0:00:03]}  Bh5 {[%clk 0:00:27]} 50. Bb2 {[%clk 0:00:03]}  Bg6 {[%clk 0:00:25]} 51. Ba1 {[%clk 0:00:03]}  Kc4 {[%clk 0:00:20]} 52. Bb2 {[%clk 0:00:03]}  Bf7 {[%clk 0:00:20]} 53. Ba1 {[%clk 0:00:03]}  Kc5 {[%clk 0:00:19]} 54. Bb2 {[%clk 0:00:03]}  Kd5 {[%clk 0:00:17]} 55. Ba1 {[%clk 0:00:03]}  Ke4 {[%clk 0:00:18]} 56. Bb2 {[%clk 0:00:03]}  d3 {[%clk 0:00:16]} 57. Bc3 {[%clk 0:00:02]}  Bg6 {[%clk 0:00:14]} 58. Bb2 {[%clk 0:00:02]}  Kd5 {[%clk 0:00:14]} 59. Bc3 {[%clk 0:00:02]}  Kc4 {[%clk 0:00:14]} 60. Bb2 {[%clk 0:00:02]}  Kb4 {[%clk 0:00:15]} 61. Ke3 {[%clk 0:00:02]}  Kc4 {[%clk 0:00:15]} 62. Kd2 {[%clk 0:00:03]}  Kb4 {[%clk 0:00:16]} 63. Ke3 {[%clk 0:00:03]}  Ka4 {[%clk 0:00:16]} 64. Kd2 {[%clk 0:00:03]}  Kb5 {[%clk 0:00:17]} 65. Kc3 {[%clk 0:00:03]}  Kc6 {[%clk 0:00:17]} 66. Kxb3 {[%clk 0:00:04]}  Kd6 {[%clk 0:00:18]} 67. Kc3 {[%clk 0:00:04]}  Ke6 {[%clk 0:00:18]} 68. Kd2 {[%clk 0:00:05]}  Kf7 {[%clk 0:00:19]} 69. Bd4 {[%clk 0:00:05]}  Bf5 {[%clk 0:00:20]} 70. Be3 {[%clk 0:00:06]}  Kg6 {[%clk 0:00:21]} 71. Bf4 {[%clk 0:00:07]}  Be4 {[%clk 0:00:20]} 72. Be3 {[%clk 0:00:08]}  Bf5 {[%clk 0:00:20]} 73. Kc3 {[%clk 0:00:08]}  Kf7 {[%clk 0:00:21]} 74. Kd4 {[%clk 0:00:09]}  Bg6 {[%clk 0:00:19]} 75. Ke5 {[%clk 0:00:08]}  Kf8 {[%clk 0:00:19]} 76. Bd2 {[%clk 0:00:09]}  Kf7 {[%clk 0:00:19]} 77. Kf4 {[%clk 0:00:09]}  Bh5 {[%clk 0:00:20]} 78. Bb4 {[%clk 0:00:10]}  Bg6 {[%clk 0:00:20]} 79. Ke5 {[%clk 0:00:10]}  Bh5 {[%clk 0:00:20]} 80. Kf4 {[%clk 0:00:11]}  Be2 {[%clk 0:00:20]} 81. Kg3 {[%clk 0:00:11]}  Bh5 {[%clk 0:00:20]} 82. Kh4 {[%clk 0:00:11]}  Bg6 {[%clk 0:00:21]} 83. Kg4 {[%clk 0:00:12]}  Bh7 {[%clk 0:00:22]} 84. Kh5 {[%clk 0:00:11]}  Bg6+ {[%clk 0:00:23]} 85. Kg4 {[%clk 0:00:11]}  Bh7 {[%clk 0:00:22]} 86. Kf4 {[%clk 0:00:10]}  Bg6 {[%clk 0:00:22]} 87. Ke3 {[%clk 0:00:10]}  Bh7 {[%clk 0:00:22]} 88. Bd6 {[%clk 0:00:11]}  Bg6 {[%clk 0:00:23]} 89. Bf4 {[%clk 0:00:11]}  Bh7 {[%clk 0:00:24]} 90. Kd4 {[%clk 0:00:12]}  Bg6 {[%clk 0:00:25]} 91. Bd2 {[%clk 0:00:11]}  Bh7 {[%clk 0:00:25]} 92. Kd5 {[%clk 0:00:12]}  Bg6 {[%clk 0:00:26]} 93. Kd6 {[%clk 0:00:12]}  Bh7 {[%clk 0:00:27]} 94. Ke5 {[%clk 0:00:13]}  Bg6 {[%clk 0:00:28]} 95. Kd4 {[%clk 0:00:13]}  Bh7 {[%clk 0:00:29]} 96. Ke5 {[%clk 0:00:13]}  Bg6 {[%clk 0:00:30]} 1/2-1/2


[Site "https://www.chess.com"]